Cogmind - Beta 13 @@@ ROGUE MODE // 2024.06.09 @ 08:44:19 Player: KaiSkiFox Result: Self-destructed Performance ------------- Evolutions (2) 1000 Regions Visited (6) 1200 Robots Destroyed (74) 370 Value Destroyed (2104) 2104 Prototype IDs (31) 620 Alien Tech Used (0) 0 Bonus (314) 314 TOTAL SCORE: 5608 Bonus ------- Follower Combat Kills 14 Aligned with FarCom 300 Cogmind --------- Core Integrity 377/550 Matter 224/300 Energy 280/280 System Corruption 0% Temperature Cool (18) Movement Core (900) Ox17 Location -8/Materials Parts ------- > --- POWER (1) -------- Heavy Ion Engine > --- PROPULSION (4) --- Light Treads > --- UTILITY (4) ------ High-capacity Storage Unit Advanced Targeting Computer > --- WEAPON (2) ------- Assault Cannon > --- INVENTORY (20) --- Heavy Ion Engine Light Treads Light Treads Advanced Treads Advanced Treads Advanced Treads Advanced Treads High-capacity Storage Unit Signal Interpreter Improved Targeting Computer Advanced Targeting Computer Armor Integrity Analyzer Shield Generator Precision Beam Rifle EM Pulse Cannon Ion Cannon Grenade Launcher Enhanced Flamer Peak State ------------ > --- POWER ------------ Heavy Ion Engine > --- PROPULSION ------- Light Treads Light Treads Light Treads Light Treads > --- UTILITY ---------- High-capacity Storage Unit Improved Targeting Computer Decoy Drone Bay > --- WEAPON ----------- Guided Plasma Cannon Autogun > --- INVENTORY -------- Heavy Ion Engine Heavy Ion Engine Light Treads Light Treads Advanced Treads Advanced Treads Advanced Treads Advanced Treads High-capacity Storage Unit Signal Interpreter Light Armor Plating Medium Armor Plating Shield Generator System Shield Ion Cannon Autogun Autogun Grenade Launcher Enhanced Flamer [Rating: 38] Favorites ----------- Power Heavy Ion Engine Engine Heavy Ion Engine Power Core Light Nuclear Core Propulsion Light Treads Treads Light Treads Leg Aluminum Leg Utility High-capacity Storage Unit Device Decoy Drone Bay Storage High-capacity Storage Unit Processor Improved Targeting Computer Hackware System Shield Protection Light Armor Plating Weapon Autogun Energy Gun Medium Laser Energy Cannon Beam Cannon Ballistic Gun Autogun Ballistic Cannon Assault Cannon Special Weapon Enhanced Flamer Build | -11 -10 -9 -9 -9 -8 -8 ------- Run | Yrd Mat Mat Min Exi Min Mat Slots Evolved 4 | . . 2 . . . 2 Power . | . . . . . . . Propulsion 2 | . . 1 . . . 1 Utility 2 | . . 1 . . . 1 Weapon . | . . . . . . . Parts Attached 64 | 6 16 25 2 2 . 13 Power 9 | 1 3 2 . . . 3 Engine 5 | 1 . 1 . . . 3 Core 4 | . 3 1 . . . . Reactor . | . . . . . . . Propulsion 15 | 2 2 8 . . . 3 Treads 13 | 2 . 8 . . . 3 Leg 2 | . 2 . . . . . Wheel . | . . . . . . . Hover . | . . . . . . . Flight . | . . . . . . . Utility 17 | 1 4 8 . . . 4 Device 2 | . 1 . . . . 1 Storage 3 | 1 2 . . . . . Processor 3 | . . 2 . . . 1 Hackware 1 | . . . . . . 1 Protection 8 | . 1 6 . . . 1 Artifact . | . . . . . . . Weapon 23 | 2 7 7 2 2 . 3 Energy Gun 6 | 1 2 2 . . . 1 Energy Cannon 7 | . 3 1 1 1 . 1 Ballistic Gun 8 | 1 2 4 . 1 . . Ballistic Cannon 1 | . . . . . . 1 Launcher . | . . . . . . . Special Weapon 1 | . . . 1 . . . Impact Weapon . | . . . . . . . Slashing Weapon . | . . . . . . . Piercing Weapon . | . . . . . . . Special Melee Weapon . | . . . . . . . Unidentified Prototypes 4 | . . 2 . . . 2 Parts Lost 15 | . 3 5 . . . 7 Power 2 | . . 1 . . . 1 Propulsion 4 | . 1 . . . . 3 Utility 5 | . . 3 . . . 2 Weapon 4 | . 2 1 . . . 1 Highest Loss Streak 7 | . 2 1 . . . 7 To Critical Strikes . | . . . . . . . Average Slot Usage (%) 96 | . 96 94 100 100 100 93 Engine 6 | . 1 4 11 11 11 8 Core 4 | . 12 6 . . . . Treads 26 | . 2 29 33 33 33 35 Leg 4 | . 24 . . . . . Storage 11 | . 14 11 11 11 11 9 Processor 7 | . . 8 11 11 11 8 Protection 10 | . 11 12 11 11 11 4 Energy Gun 1 | . 4 1 . . . 2 Energy Cannon 9 | . 4 11 9 11 11 8 Ballistic Gun 10 | . 18 8 11 11 11 6 Naked Turns . | . . . . . . . Heaviest Build 75 | 12 53 57 57 64 64 75 Greatest Support 80 | 40 40 66 60 60 60 80 Greatest Overweight (x) 20 | . 4 2 . 1 1 20 Average Overweight (x) . | . 1 . . . 1 . Largest Inventory Capacity 20 | 8 20 20 20 20 20 20 Average Capacity 19 | 7 16 20 20 20 20 20 Most Carried 20 | 4 12 20 20 20 20 20 Average Carried 17 | 2 9 18 19 20 20 19 Final Capacity 20 | 8 20 20 20 20 20 20 Final Carried 20 | 4 10 20 20 20 20 18 Class Distribution -------------------- 58% | Scavenger-Mutant 41% | Mutant Dominant Class ---------------- Mutant | -10/Materials Mutant | -9/Materials Scavenger-Mutant | -9/Mines Scavenger-Mutant | -9/Exiles Scavenger-Mutant | -8/Mines Scavenger-Mutant | -8/Materials Resources | -11 -10 -9 -9 -9 -8 -8 ----------- Run | Yrd Mat Mat Min Exi Min Mat Matter Collected 1305 | 217 359 453 116 . 20 140 Remotely . | . . . . . . . Salvage Created 2685 | . 444 1245 249 . 55 692 Parts 165 | . 31 83 13 . 5 33 Haulers Intercepted 7 | . 2 5 . . . . Recyclers Shooed 1 | . . 1 . . . . Parts Field Recycled . | . . . . . . . Retrieved Matter . | . . . . . . . Parts Self-Destructed . | . . . . . . . Prevented . | . . . . . . . Kills | -11 -10 -9 -9 -9 -8 -8 ------- Run | Yrd Mat Mat Min Exi Min Mat Combat Hostiles Destroyed 56 | . 11 19 10 . 1 15 Guns 20 | . 7 9 4 . . . Cannons 33 | . 4 8 6 . 1 14 Classes Destroyed 8 | . 5 2 . . 1 . Worker 4 | . 2 2 . . . . Hauler 7 | . 2 5 . . . . Watcher 7 | . 1 3 . . . 3 Swarmer 14 | . 6 . 5 . . 3 Grunt 28 | . 5 10 5 . . 8 Duelist 3 | . . 2 . . . 1 Sentry 8 | . . 7 . . . 1 Hunter 3 | . . . . . 1 2 Best Kill Streak 4 | . 4 4 4 . 1 3 Combat Bots Only 4 | . 3 3 4 . 1 3 Max Kills in Single Turn 2 | . 2 1 1 . 1 1 Gunslinging . | . . . . . . . Exploded . | . . . . . . . Melee . | . . . . . . . Uniques/NPCs Destroyed . | . . . . . . . Combat | -11 -10 -9 -9 -9 -8 -8 -------- Run | Yrd Mat Mat Min Exi Min Mat Hostile Shots Fired 327 | . 100 101 43 . 4 79 Missed 63 | . 27 19 8 . 1 8 Damage Taken 3416 | . 762 1168 341 . 42 1103 Core 422 | . 96 132 21 . . 173 Absorbed by Shields . | . . . . . . . Regen/Repaired (Parts) 643 | . 37 485 . . . 121 Core Remaining (%) 74 | 100 61 . . . 61 . Volleys Fired 221 | . 60 82 24 . 4 51 Largest 2 | . 2 2 2 . 1 1 Hottest 120 | . 110 110 103 . 120 120 Shots Fired 376 | . 118 155 48 . 4 51 Gun 200 | . 98 78 24 . . . Cannon 170 | . 20 77 18 . 4 51 Launcher . | . . . . . . . Special 6 | . . . 6 . . . Kinetic 192 | . 95 62 24 . . 11 Thermal 184 | . 23 93 24 . 4 40 Explosive . | . . . . . . . Electromagnetic . | . . . . . . . Robot Hit Streak 46 | . 16 13 7 . 5 46 Robot Miss Streak 7 | . 6 7 2 . . 1 Penetration Max . | . . . . . . . Secondary Targets 2 | . 2 . . . . . Max Gunslinging Chain 1 | . 1 . . . . . Shots Hit Robots 252 | . 67 105 28 . 4 48 Core Hits 99 | . 26 41 12 . 1 19 Critical Kills 2 | . . 2 . . . . Critical Parts Destroyed . | . . . . . . . Critical Strikes 4 | . . 3 . . . 1 Burn 1 | . . 1 . . . . Meltdown 2 | . . 2 . . . . Blast 1 | . . . . . . 1 Melee Attacks . | . . . . . . . Impact . | . . . . . . . Slashing . | . . . . . . . Piercing . | . . . . . . . Sneak Attacks . | . . . . . . . Combat Hostiles . | . . . . . . . Follow-up Attacks . | . . . . . . . Damage Inflicted 4867 | . 893 1779 476 . 131 1588 Guns 1648 | . 628 779 241 . . . Cannons 3173 | . 265 997 192 . 131 1588 Explosions . | . . . . . . . Melee . | . . . . . . . Ramming 3 | . . 3 . . . . Kinetic 1632 | . 603 590 241 . . 198 Thermal 3232 | . 290 1186 235 . 131 1390 Explosive . | . . . . . . . Electromagnetic . | . . . . . . . Impact . | . . . . . . . Slashing . | . . . . . . . Piercing . | . . . . . . . Highest Corruption . | . . . . . . . Average Corruption . | . . . . . . . Corruption Purged . | . . . . . . . Corruption Blocked . | . . . . . . . Overload Shots . | . . . . . . . Overflow Damage 34 | . 13 5 . . . 16 Projectiles 34 | . 13 5 . . . 16 Explosions . | . . . . . . . Melee . | . . . . . . . Knockbacks . | . . . . . . . Impact . | . . . . . . . Kinetic . | . . . . . . . Secondary . | . . . . . . . Self-Inflicted Damage . | . . . . . . . Shots . | . . . . . . . Rammed 1 | . . 1 . . . . Targets Rammed 1 | . . 1 . . . . Kicked . | . . . . . . . Crushed . | . . . . . . . Highest Temperature 618 | . 349 468 258 . 328 618 Average Temperature 143 | . 104 117 113 . 167 227 Received Heat Transfer 1362 | . 276 477 96 . . 513 Effects 31 | . 6 9 . . . 16 Shutdowns 10 | . 1 3 . . . 6 Energy Bleed 5 | . 2 . . . . 3 Interference 5 | . 2 3 . . . . Matter Decay 1 | . . . . . . 1 Short Circuit 5 | . 1 . . . . 4 Damage (minor) 1 | . . . . . . 1 Damage (major) 4 | . . 3 . . . 1 Siege Activations . | . . . . . . . Robots Corrupted . | . . . . . . . Combat Hostiles . | . . . . . . . Parts Fried . | . . . . . . . Impact Corruptions . | . . . . . . . Robots Melted 3 | . . 2 . . . 1 Combat Hostiles 3 | . . 2 . . . 1 Parts Melted 23 | . 1 11 2 . . 9 Heat Transferred 7614 | . 629 2738 727 . 320 3200 Parts Sabotaged . | . . . . . . . Parts Stolen . | . . . . . . . Parts Stripped . | . . . . . . . Power Chain Reactions . | . . . . . . . Alert | -11 -10 -9 -9 -9 -8 -8 ------- Run | Yrd Mat Mat Min Exi Min Mat Peak Influence 248 | . 148 248 185 . 30 227 Initial 23 | . . 13 23 . . . Average 65 | . 45 84 69 . 6 82 Maximum Alert Level 1 | . . 1 . . . 1 Low Security (%) 95 | 100 100 90 100 . 100 94 Level 1 4 | . . 9 . . . 5 Level 2 . | . . . . . . . Level 3 . | . . . . . . . Level 4 . | . . . . . . . Level 5 . | . . . . . . . High Security . | . . . . . . . Max Security . | . . . . . . . Squads Dispatched 2 | . 1 . . . . 1 Investigation 1 | . 1 . . . . . Extermination . | . . . . . . . Reinforcement . | . . . . . . . Assault . | . . . . . . . Garrison 1 | . . . . . . 1 Intercept . | . . . . . . . Searches Triggered . | . . . . . . . Construction Impeded . | . . . . . . . Haulers Reinforced . | . . . . . . . Active Scanning Responses . | . . . . . . . Cargo Convoy Interrupts . | . . . . . . . Stealth | -11 -10 -9 -9 -9 -8 -8 --------- Run | Yrd Mat Mat Min Exi Min Mat Distress Signals 3 | . 1 2 . . . . Communications Jammed . | . . . . . . . Distress Signals . | . . . . . . . Times Spotted 82 | . 19 26 13 . 1 23 Peak Tracking Total 5 | . 5 4 4 . 1 4 Tactical Retreats 3 | . . 1 1 . . 1 Traps | -11 -10 -9 -9 -9 -8 -8 ------- Run | Yrd Mat Mat Min Exi Min Mat Traps Triggered 3 | . 2 . . . . 1 Indirectly . | . . . . . . . Trap Hack Attempts . | . . . . . . . Triggered . | . . . . . . . Disarmed . | . . . . . . . Reprogrammed . | . . . . . . . Reused . | . . . . . . . Traps Extracted . | . . . . . . . Installed . | . . . . . . . Triggered . | . . . . . . . Machines | -11 -10 -9 -9 -9 -8 -8 ---------- Run | Yrd Mat Mat Min Exi Min Mat Machines Disabled 3 | . 2 . 1 . . . Max in Single Turn 1 | . 1 . . . . . Machines Repaired . | . . . . . . . Machines Dismantled . | . . . . . . . Machines Sabotaged . | . . . . . . . Overloaded Fab Kills . | . . . . . . . Hacking | -11 -10 -9 -9 -9 -8 -8 --------- Run | Yrd Mat Mat Min Exi Min Mat Machines Accessed 25 | . 6 12 1 1 . 5 Terminals 19 | . 5 10 . . . 4 Fabricators . | . . . . . . . Repair Stations 4 | . 1 2 . . . 1 Recycling Units . | . . . . . . . Scanalyzers . | . . . . . . . Garrison Access . | . . . . . . . Total Hacks 81 | . 20 40 1 1 . 19 Successful 38 | . 8 20 1 1 . 8 Failed 43 | . 12 20 . . . 11 Catastrophic 14 | . 5 7 . . . 2 Database Lockouts . | . . . . . . . Manual 40 | . 9 19 . 1 . 11 Terminals 59 | . 17 27 . . . 15 Fabricators . | . . . . . . . Repair Stations 20 | . 3 13 . . . 4 Recycling Units . | . . . . . . . Scanalyzers . | . . . . . . . Garrison Access . | . . . . . . . Terminal Hacks 24 | . 6 10 1 1 . 6 Record 1 | . . 1 . . . . Prototype ID Bank 2 | . 2 . . . . . Open Door 1 | . . . 1 . . . Level Access Points 1 | . . . . . . 1 Branch Access Points 1 | . . 1 . . . . Terminal Index 4 | . 1 1 . . . 2 Alert Level 3 | . 1 1 . . . 1 Unreport Threat 2 | . . 2 . . . . Locate Traps 1 | . . 1 . . . . Transport Status 2 | . 1 . . . . 1 Hauler Manifests 2 | . . 2 . . . . Zone Layout 3 | . 1 1 . . . 1 Derelict Proto ID Bank 1 | . . . . 1 . . Fabricator Hacks . | . . . . . . . Repair Station Hacks 14 | . 2 10 . . . 2 Scan Component 7 | . 1 5 . . . 1 Repair 7 | . 1 5 . . . 1 Recycling Unit Hacks . | . . . . . . . Scanalyzer . | . . . . . . . Garrison Access Hacks . | . . . . . . . Unauthorized Hacks . | . . . . . . . Terminals . | . . . . . . . Fabricators . | . . . . . . . Repair Stations . | . . . . . . . Recycling Units . | . . . . . . . Scanalyzers . | . . . . . . . Garrison Access . | . . . . . . . Data Cores Recovered . | . . . . . . . Used . | . . . . . . . Hacking Detections 19 | . 6 10 . . . 3 Full Trace Events . | . . . . . . . Feedback Events . | . . . . . . . Feedback Blocked . | . . . . . . . Robot Schematics Acquired . | . . . . . . . Robots Built . | . . . . . . . Authchips . | . . . . . . . Time . | . . . . . . . Total Robot Build Rating . | . . . . . . . Part Schematics Acquired . | . . . . . . . Parts Built . | . . . . . . . Authchips . | . . . . . . . Time . | . . . . . . . Total Part Build Rating . | . . . . . . . Parts Repaired 7 | . 1 5 . . . 1 Time 230 | . 38 166 . . . 26 Parts Recycled . | . . . . . . . Recycled Matter . | . . . . . . . Retrieved Matter . | . . . . . . . Retrieved Components . | . . . . . . . Parts Scanalyzed . | . . . . . . . Part Schematics Acquired . | . . . . . . . Parts Damaged . | . . . . . . . Bothacking | -11 -10 -9 -9 -9 -8 -8 ------------ Run | Yrd Mat Mat Min Exi Min Mat Used RIF Installer . | . . . . . . . Robots Hacked . | . . . . . . . Non-combat . | . . . . . . . Combat . | . . . . . . . Robot Hacks Applied . | . . . . . . . Relay Couplers Released . | . . . . . . . Fabnet Peak Effective % . | . . . . . . . Robots Rewired . | . . . . . . . Allies Hacked . | . . . . . . . Hacks Repelled . | . . . . . . . Allies | -11 -10 -9 -9 -9 -8 -8 -------- Run | Yrd Mat Mat Min Exi Min Mat Total Allies 1 | . . . 1 . . . Largest Group 1 | . . . 1 1 . . Highest-Rated Group 31 | . . . 31 31 . . Highest-Rated Ally 31 | . . . 31 31 . . Total Orders . | . . . . . . . Ally Attacks 6 | . . . 6 . . . Total Damage 83 | . . . 83 . . . Kills 2 | . . . 2 . . . Allies Corrupted . | . . . . . . . Allies Melted . | . . . . . . . Intel | -11 -10 -9 -9 -9 -8 -8 ------- Run | Yrd Mat Mat Min Exi Min Mat Robot Analysis Total . | . . . . . . . Derelict Logs Recovered 2 | . . . 2 . . . Drone Launches 16 | . . . . . . 16 Drone Recoveries . | . . . . . . . Exploration | -11 -10 -9 -9 -9 -8 -8 ------------- Run | Yrd Mat Mat Min Exi Min Mat Turns Passed 8479 | 74 1551 2753 1017 759 802 1523 Spaces Moved 3776 | 41 597 1257 526 358 318 679 Core 7 | 4 1 . . . . 2 Treads 3213 | 37 57 1240 526 358 318 677 Legs 556 | . 539 17 . . . . Wheels . | . . . . . . . Hover . | . . . . . . . Flight . | . . . . . . . Fastest Speed 50 | 50 120 145 160 160 240 160 Average Speed 185 | 149 217 173 160 211 240 163 Slowest Speed 1050 | 160 260 305 160 240 240 1050 Overloaded Moves . | . . . . . . . Propulsion Burnouts . | . . . . . . . Robots Hopped . | . . . . . . . Cave-ins Triggered . | . . . . . . . Exploration Rate (%) 64 | 3 77 87 87 85 68 45 Regions Visited 6 Branch Regions 3 Pre-discovered Areas 1 | . . . 1 . . . Known Exits Taken 1 | . . 1 . . . . Unknown Exits Taken 5 | 1 1 . 1 1 1 . Scrap Searched 3 | . . . 1 . 2 . Spaces Dug . | . . . . . . . Terrain Destroyed 2 | . . . . . . 2 Melee . | . . . . . . . Projectile 2 | . . . . . . 2 AOE . | . . . . . . . Terrain Rammed . | . . . . . . . Walls Destroyed . | . . . . . . . Machines Disabled . | . . . . . . . Actions | -11 -10 -9 -9 -9 -8 -8 --------- Run | Yrd Mat Mat Min Exi Min Mat Total 4881 | 51 736 1681 655 360 354 1044 Wait 711 | . 48 250 97 . 33 283 Move 3770 | 40 596 1256 525 357 317 679 Hop . | . . . . . . . Pick Up 67 | 5 9 41 3 . . 9 Fast Attach 26 | 5 9 6 . . . 6 Attach 20 | 1 2 12 . . . 5 Detach 2 | . 1 . . . . 1 Swap 18 | . 5 7 2 2 . 2 Drop 45 | . 6 26 4 1 . 8 Fire 221 | . 60 82 24 . 4 51 Melee . | . . . . . . . Ram . | . . . . . . . Kick . | . . . . . . . Crush 1 | . . 1 . . . . Escape Stasis . | . . . . . . . Rewire . | . . . . . . . Trap . | . . . . . . . Miscellaneous . | . . . . . . . Route ------- -11/Scrapyard -10/Materials (discovered 3 exits: *Mat x2 / [*Min]) -9/Materials (discovered 4 exits: *Mat x3 / *Min) -9/Mines (discovered 3 exits: *Mat x2 / *Exi) -9/Exiles -8/Mines -8/Materials (discovered 3 exits: *Fac x3) History --------- Turn | Location | Event 31 | -11/Scrapyard | Discovered new exit (range 14) 75 | -11/Scrapyard | Entered Materials 313 | -10/Materials | Discovered new exit (range 8) 315 | -10/Materials | Build established: Mutant 808 | -10/Materials | Discovered new exit (range 13) 1018 | -10/Materials | Discovered new exit (range 8) 1459 | -10/Materials | Repaired Lgt. Nuclear Core 1626 | -10/Materials | Entered another Materials area 1626 | -9/Materials | Evolved 2 slots: Propulsion x1, Utility x1 2586 | -9/Materials | Identified exit to Mines 2799 | -9/Materials | Repaired Adv. Treads 2837 | -9/Materials | Repaired Adv. Treads 2939 | -9/Materials | Discovered new exit (range 16) 2992 | -9/Materials | Build established: Scavenger-Mutant 3433 | -9/Materials | Repaired Adv. Treads 3461 | -9/Materials | Repaired Lgt. Armor Plating 3489 | -9/Materials | Repaired Lgt. Treads 3677 | -9/Materials | Discovered new exit (range 13) 3730 | -9/Materials | Build established: Mutant 4122 | -9/Materials | Discovered new exit (range 11) 4379 | -9/Materials | Entered Mines 4382 | -9/Mines | Found the Drone Emporium 4394 | -9/Mines | Found Prototype Device 4427 | -9/Mines | Found a damaged Exp. Sensor Array with a note attached 4472 | -9/Mines | Build established: Scavenger-Mutant 4585 | -9/Mines | A weapon hastily lodged in a ceiling crevice suddenly fell to the ground 4732 | -9/Mines | Learned location of Zion (-6) 4944 | -9/Mines | Learned location of 1 exit from Materials 5126 | -9/Mines | Escorted by a lone wolf Derelict 5243 | -9/Mines | Discovered new exit (range 11) 5347 | -9/Mines | Discovered new exit (range 10) 5388 | -9/Mines | Deemed a non-threat by the Exiles lab entrance 5390 | -9/Mines | Discovered new exit (range 5) 5396 | -9/Mines | Entered Exiles 5396 | -9/Exiles | Accompanied by 1 ally 5438 | -9/Exiles | Met 8R-AWN 5464 | -9/Exiles | Met EX-HEX 5508 | -9/Exiles | Met EX-BIN 5537 | -9/Exiles | Aligned with FarCom system 5539 | -9/Exiles | Given EX-Vault access code 5582 | -9/Exiles | Opened EX-Vault 5598 | -9/Exiles | Found Gui. Plasma Cannon 5647 | -9/Exiles | Warned to stay clear of 0b10 Research branches 5711 | -9/Exiles | Met EX-DEC 5835 | -9/Exiles | Visited The Gauntlet 6131 | -9/Exiles | Discovered new exit (range 10) 6155 | -9/Exiles | Left Exiles lab with Gui. Plasma Cannon 6155 | -9/Exiles | Entered Mines 6938 | -8/Mines | Discovered new exit (range 8) 6957 | -8/Mines | Entered Materials 6957 | -8/Materials | Evolved 2 slots: Propulsion x1, Utility x1 6958 | -8/Materials | Identified exit to Factory 6959 | -8/Materials | Identified Decoy Drone Bay 7028 | -8/Materials | Lost 16 allies 8016 | -8/Materials | Repaired Lgt. Treads 8395 | -8/Materials | Garrison activated, responded to threat 8480 | -8/Materials | Self-destructed Last Messages --------------- 08435_ G-47 Trooper Aluminum Leg blasted off. 08435_ Lgt. Nuclear Core melted. 08435_ G-47 Trooper destroyed. 08437_ System Shield destroyed. 08445_ Overheating: Energy bleed (-19). 08446_ Lgt. Treads broken. 08446_ Overheating: Short circuit. 08447_ U-05 Engineer builds a Wall. 08449_ G-47 Trooper destroyed. 08451_ Broken Lgt. Treads destroyed. 08453_ Power failure, Hvy. Ion Engine shutdown. 08453_ Assault Cannon broken. 08453_ Overheating: Short circuit. 08453_ U-05 Engineer builds a Wall. 08454_ Broken Lgt. Treads destroyed. 08457_ Acquired 40 matter. 08457_ Lgt. Treads destroyed. 08460_ Med. Armor Plating destroyed. 08465_ Critical hit (Burn: +37). 08471_ Gui. Plasma Cannon destroyed. Map ----- +----------------------------------------------------+ | #??????????????????????????????????????????? | | #??????????????????????????????????????????? | | #??????????????????????????????????????????? | | #??????????????????????????????????????????? | | #######??????????????????????????????????????????? | | ??????????????????????? ???????????????????????? | | ??????????????????????? ???????????????????????? | | ??????????????????????? ???????????????????????? | | ??????????????????????? #??????????????????????? | | ??????????????????????? !#??????????????????????? | | ??????????????????????? #??????????????????????? | | ???????????????????????! #??????????????????????? | | ????????????????????? #??????????????????????? | | ????????]!!?????????? "" #??????????????????????? | | ???????]]!!!??????????T" ???????????????????????? | | ??????? ??????????"" ???????????????????????? | | ????### ???????????? ???????????????????????? | | ???# ????????????? ???????????????????????? | | ???# ??????????????#*#???????????????????????? | | ???# ???????????????#%##??????????????????????? | | ???# #????????#+######+##??????????????????????? | | ???# #???????## !=%=#??????????????????????? | | ???# #????????# """g"""Y#??????????????????????? | | #### #????????# """ """ #??????????????????????? | | #????????# """ """=#????????Y?????????????? | | [ % #???###### g =@#??????????????????????? | | ! #???# + % #??????????????????????? | | +### #???# #### #??????????????????????? | | %% # #???# #??# #??????????????????????? | | % # #####+##############??????????????????????? | | # # #????????????????????????????????? | | # # #????????????????????????????????? | | # # #????????????????????????????????? | | # # #????????????????????????????????? | | # + #????????????????????????????????? | | # # #????????????????????????????????? | | # < # #????????????????????????????????? | | # # #????????????????????????????????? | | ##### #????????????????????????????????? | | #???##########????????????????????????????????? | | ####?????????????????????????????????????????????? | | ?????????????????????????????????????????????????? | | ?????????????????????????????????????????????????? | | ?????????????????????????????????????????????????? | | ?????????????????????????????????????????????????? | | | | | | | | | | | +----------------------------------------------------+ Best States ------------- Heat Dissipation 31 Energy Generation 14 Energy Capacity 280 Matter Stores 300 Matter Capacity 300 Sight Range 16 Terrain Scan Density 10 Armor Coverage 300 Utility Shielding 33 Evasion (%) 55 Targeting Accuracy 8 Recoil Reduction 4 Defensive Hacking 10 Item Schematics ----------------- None Robot Schematics ------------------ None Fabricated ------------ Nothing Alien Tech Used ----------------- None Achievements -------------- Release The Drones! Challenges ------------ None Game ------ Seed CouplerAerolevGravjet Manual? 0 Play Time 00:53:17 Cumulative 13.9 hours Start 2024.06.08 @ 10:18:34 End 2024.06.09 @ 08:44:19 Sessions 7 Manual Loads 0 Difficulty Rogue Special Mode None Game No. 17 Rogue 7 Adventurer 10 Explorer 0 Win Type - Total 0 Types 0/0/0/0/0/0/0/0/0 Lore% 21 Gallery% 26 Achievement% 21 Wizard Run 0 Options --------- Layout 0 ASCII 0 Keyboard 0 Movement Mouse Keybinds 0 Fullscreen 1 Font 24/Smallcaps Map View 76x50 Zoom Use 0% Tactical HUD 1 Map Filters NONE Filters NONE Steam 1 RUN: 9acc5f25-3023-445b-b38c-5ea0a3f600ae